lending/lending_fUSD_20240110
["ID","MTS","AMOUNT","RATE_DAILY","PERIOD"]
[310999132,1704847838593,-153.68,0.00034059,2]
[310999134,1704847838603,-158.88,0.00034174,2]
[310999136,1704847838612,-203.0,0.00034255,2]
[310999138,1704847838621,-153.68,0.00034277,2]
[310999140,1704847838631,-153.68,0.00034494,2]
[310999142,1704847838640,-615.02,0.000345,2]
[310999145,1704847838649,-615.02,0.000345,2]
[310999147,1704847838658,-615.02,0.000345,2]
[310999149,1704847838670,-615.02,0.000345,2]
[310999151,1704847838679,-615.02,0.000345,2]
[310999153,1704847838688,-615.02,0.000345,2]
[310999155,1704847838697,-615.02,0.000345,2]
[310999157,1704847838706,-615.02,0.000345,2]
[310999159,1704847838715,-615.02,0.000345,2]
[310999161,1704847838723,-615.02,0.000345,2]
[310999163,1704847838733,-615.02,0.000345,2]
[310999165,1704847838742,-615.02,0.000345,2]
[310999167,1704847838752,-615.02,0.000345,2]
[310999169,1704847838762,-615.02,0.000345,2]
[310999171,1704847838771,-615.02,0.000345,2]
[310999173,1704847838781,-615.02,0.000345,2]
[310999175,1704847838790,-615.02,0.000345,2]
[310999177,1704847838799,-615.02,0.000345,2]
[310999179,1704847838808,-615.02,0.000345,2]
[310999181,1704847838817,-615.02,0.000345,2]
[310999183,1704847838826,-157.38,0.000345,2]
[310999185,1704847838836,-153.68,0.00034712,2]
[310999187,1704847838845,-153.68,0.0003493,2]
[310999189,1704847838854,-168.95,0.00034994,2]
[310999191,1704847838865,-11726.19983714,0.00035,2]
[310999193,1704847838875,-600.0,0.00035,3]
[310999195,1704847838884,-465.3,0.00035079,2]
[310999197,1704847838894,-153.68,0.00035147,2]
[310999199,1704847838903,-212.88,0.00035373,2]
[310999201,1704847838912,-180.34,0.00035516,2]
[310999203,1704847838922,-158.88,0.00035544,2]
[310999205,1704847838931,-169.74,0.00035575,2]
[310999207,1704847838940,-152.08,0.00035616,2]
[310999209,1704847838949,-203.0,0.00035685,5]
[310999211,1704847838958,-310.04,0.0003571,2]
[310999213,1704847838968,-161.72403562,0.00036089,2]
[310999215,1704847838977,-153.84,0.00036236,2]
[310999217,1704847838986,-180.0,0.00036242,2]
[310999219,1704847838995,-169.74,0.00036287,2]
[310999221,1704847839004,-659.01,0.00036613,15]
[310999223,1704847839014,-158.88,0.00036913,2]
[310999225,1704847839023,-271.2747877,0.00036976,2]
[310999227,1704847839032,-1000.0,0.00036986,2]
[310999229,1704847839041,-169.74,0.00036998,2]
[310999231,1704847839051,-427.65103486,0.00036999,4]
[310999233,1704847839060,-792.01158735,0.00036999,4]
[310999235,1704847839070,-424.12942671,0.00036999,4]
[310999237,1704847839080,-667.33870884,0.00037,7]
[310999239,1704847839089,-650.0,0.00037,3]
[310999241,1704847839099,-615.02,0.00037,3]
[310999243,1704847839108,-615.02,0.00037,3]
[310999245,1704847839117,-615.02,0.00037,3]
[310999247,1704847839127,-615.02,0.00037,3]
[310999250,1704847839137,-615.02,0.00037,3]
[310999253,1704847839146,-615.02,0.00037,3]
[310999255,1704847839156,-615.02,0.00037,3]
[310999257,1704847839165,-615.02,0.00037,3]
[310999259,1704847839176,-615.02,0.00037,3]
[310999261,1704847839185,-615.02,0.00037,3]
[310999263,1704847839194,-615.02,0.00037,3]
[310999265,1704847839203,-615.02,0.00037,3]
[310999267,1704847839212,-615.02,0.00037,3]
[310999269,1704847839221,-615.02,0.00037,3]
[310999271,1704847839230,-615.02,0.00037,3]
[310999273,1704847839240,-615.02,0.00037,3]
[310999275,1704847839249,-615.02,0.00037,3]
[310999277,1704847839258,-615.02,0.00037,3]
[310999279,1704847839267,-615.02,0.00037,3]
[310999281,1704847839277,-615.02,0.00037,3]
[310999283,1704847839287,-157.38,0.00037,3]
[310999285,1704847839296,-157.38,0.00037,3]
[310999287,1704847839305,-366.70823702,0.0003706,2]
[310999289,1704847839315,-203.0,0.00037115,8]
[310999291,1704847839328,-500.0,0.00037141,120]
[310999293,1704847839338,-3180.6266193,0.00037141,30]
[310999295,1704847839347,-1965.399855,0.00037141,30]
[310999297,1704847839356,-1937.236888,0.00037141,30]
[310999299,1704847839365,-304.856372,0.00037141,30]
[310999301,1704847839374,-41576.0,0.00037141,4]
[310999303,1704847839383,-150.0,0.00037141,30]
[310999305,1704847839392,-150.0,0.00037141,30]
[310999307,1704847839402,-150.0,0.00037141,30]
[310999309,1704847839411,-150.0,0.00037141,30]
[310999311,1704847839421,-150.0,0.00037141,30]
[310999313,1704847839430,-184.511318,0.00037141,30]
[310999315,1704847839439,-151.57131296,0.0003716,8]
[310999317,1704847839449,-1000.0,0.0003726,4]
[310999319,1704847839458,-808.00298093,0.000373,2]
[310999321,1704847839467,-1000.0,0.00037534,6]
[310999323,1704847839477,-169.74,0.0003771,2]
[310999325,1704847839486,-157.46353718,0.0003771,7]
[310999327,1704847839495,-11183.54447319,0.00037802,7]
[310999329,1704847839504,-6558.94518747,0.00037802,7]
[310999331,1704847839513,-2222.57258874,0.00037802,4]
[310999333,1704847839522,-1500.0,0.00037802,4]
[310999335,1704847839531,-858.38197682,0.00037802,6]
[310999337,1704847839540,-364.21067684,0.00037802,4]
[310999339,1704847839550,-234.079768,0.00037802,7]
[310999341,1704847839559,-152.66700614,0.00037827,7]
[310999343,1704847839568,-310.04,0.00037974,2]
[310999345,1704847839577,-1944.37975294,0.00038141,10]
[310999347,1704847839586,-28625.42996165,0.00038151,13]
[310999349,1704847839596,-16884.34074222,0.00038151,12]
[310999351,1704847839605,-3967.6565562,0.00038151,11]
[310999353,1704847839614,-972.18987647,0.0003817,10]
[310999355,1704847839623,-8092.48100141,0.0003818,7]
[310999357,1704847839632,-5833.13925882,0.00038246,10]
[310999359,1704847839641,-1158.79532186,0.00038253,10]
[310999361,1704847839650,-55555.0,0.00038256,3]
[310999363,1704847839659,-1687.94517315,0.00038256,2]
[310999365,1704847839669,-253.8614239,0.00038256,2]
[310999367,1704847839679,-158.88,0.00038283,2]
[310999369,1704847839689,-3858.0,0.0003829,3]
[310999371,1704847839698,-169.7253,0.000383,2]
[310999373,1704847839707,-9721.8987647,0.00038336,10]
[310999375,1704847839716,-155.88399718,0.00038343,2]
[310999377,1704847839725,-59844.98896446,0.00038346,2]
[310999379,1704847839738,-578914.19288253,0.00038346,2]
[310999384,1704847839761,-3565.97592634,0.00038346,2]
[310999452,1704847840368,-155.19433074,0.00028349,2]
[310999454,1704847840378,-6451.35993348,0.00038346,2]
[310999474,1704847840552,-376.89547163,0.00038346,2]
[310999477,1704847840572,-688.23,0.00038346,2]
[310999488,1704847840654,-150.0,0.00037141,30]
[310999490,1704847840664,-150.0,0.00037141,30]
[310999492,1704847840675,-232.79523496,0.00038346,2]
[310999970,1704847845457,-155.19433074,0.00029764,2]
[310999974,1704847845467,-150.0,0.00037141,30]
[310999978,1704847845476,-150.0,0.00037141,30]
[310999982,1704847845486,-150.0,0.00037141,30]
[310999986,1704847845495,-250.0,0.00037141,30]
[310999990,1704847845504,-162.50567824,0.00038256,2]
[310999993,1704847845513,-205.9156676,0.00038345,4]
[310999998,1704847845523,-155.0,0.00038345,4]
[311000002,1704847845533,-1294.16620363,0.00038346,2]
[311000033,1704847845655,-7017.81791303,0.00038346,2]
[311000036,1704847845667,-1423.82121865,0.00038346,2]
[311000042,1704847845700,-5593.82683047,0.00038346,2]
[311000045,1704847845711,-937.1845379,0.00038346,2]
[311000048,1704847845722,-299.61036599,0.00038346,2]
[311000058,1704847845751,-282.95863908,0.00038346,2]
[311000068,1704847845778,-403.53386833,0.0003714,2]
[311000071,1704847845789,-334.58842127,0.0003714,2]
[311000076,1704847845799,-1747.68672936,0.00038346,2]
[311000079,1704847845811,-304.67570635,0.00038346,2]
[311000084,1704847845831,-1967.56266476,0.00038346,2]
[311000087,1704847845842,-467.96350648,0.00038346,2]
[311000090,1704847845854,-2743.3237859,0.00038346,2]
[311000093,1704847845864,-200.0,0.00038346,7]
[311000096,1704847845874,-200.0,0.00038346,7]
[311000099,1704847845883,-200.0,0.00038346,7]
[311000102,1704847845892,-155.90564938,0.00038351,7]
[311000107,1704847845902,-623.53598872,0.00038353,2]
[311000109,1704847845911,-150.0,0.00038355,2]
[311000111,1704847845920,-150.0,0.00038355,2]
[311000114,1704847845931,-150.0,0.00038355,2]
[311000119,1704847845941,-150.0,0.00038355,2]
[311000136,1704847846029,-266.66666658,0.00038355,2]
[311000139,1704847846039,-456.7439985,0.00038356,2]
[311000144,1704847846049,-497.57683529,0.00038356,2]
[311000147,1704847846058,-2382.63651532,0.00038356,2]
[311000150,1704847846070,-491.82057644,0.00038356,2]
[311000153,1704847846081,-430.672275,0.00038356,2]
[311000156,1704847846093,-968.6,0.00038356,2]
[311000246,1704848046536,346.47,0.00021854,2]
[311000249,1704848118831,167.9,0.00022371,2]
[311000250,1704848144946,436.25,0.0002236,2]
[311000251,1704848147105,2000.0,0.0002236,2]
[311000252,1704848200817,176.38,0.00022014,2]
[311000253,1704848208670,611.72,0.00021959,2]
[311000255,1704848244621,285.36,0.00021941,2]
[311000256,1704848277949,1258.03,0.00021941,2]
[311000257,1704848313921,155.27,0.00022075,2]
[311000258,1704848314291,155.27,0.00022203,2]
[311000259,1704848314351,155.27,0.00022331,2]
[311000260,1704848314732,155.27,0.00022459,2]
[311000261,1704848324374,250.0,0.00021903,2]
[311000262,1704848332223,152.32,0.00021891,2]
[311000263,1704848332402,152.32,0.00022006,2]
[311000264,1704848332781,152.32,0.00022121,2]
[311000265,1704848332992,152.32,0.00022236,2]
[311000266,1704848333325,152.32,0.00022351,2]
[311000267,1704848333552,152.32,0.00022467,2]
[311000268,1704848349486,188.26,0.00021841,2]
[311000269,1704848382813,334.89,0.00021834,2]
[311000270,1704848426180,183.2,0.00021782,2]
[311000271,1704848482995,23900.0,0.00021802,2]
[311000272,1704848502962,265.41,0.00021795,2]
[311000273,1704848545001,378.9,0.00019837,2]
[311000274,1704848545171,378.9,0.00022101,2]
[311000275,1704848592981,119107.0,0.00022315,2]
[311000276,1704848604306,64444.8622,0.00022442,2]
[311000277,1704848608056,155.0,0.00022501,2]
[311000278,1704848613108,10506.06029105,0.00022501,2]
[311000279,1704848617185,1201.39604646,0.00022501,2]
[311000280,1704848617243,2315.6309702,0.00022501,2]
[311000281,1704848618743,524.21736747,0.00022501,2]
[311000282,1704848619950,249.83792401,0.00022501,2]
[311000283,1704848621935,259.69800939,0.00022501,2]
[311000284,1704848623297,526.93895841,0.00022501,2]
[311000285,1704848624131,417.33036051,0.00022501,2]
[311000286,1704848624347,841.5854255,0.00022501,2]
[311000287,1704848625077,4019.532,0.00022442,2]
[311000288,1704848625657,416.3971,0.00022442,2]
[311000289,1704848627870,383.92959954,0.00022501,2]
[311000290,1704848629578,155.0,0.00022501,2]
[311000291,1704848630153,2141.64504361,0.00022501,2]
[311000292,1704848635963,252.46411178,0.00022501,2]
[311000293,1704848637366,939.01597948,0.00022501,2]
[311000294,1704848638734,262.89810804,0.00022501,2]
[311000295,1704848644100,11660.17096598,0.00022501,2]
[311000296,1704848645174,277.86960286,0.00022501,2]
[311000297,1704848646006,232.75551705,0.00022501,2]
[311000298,1704848647984,309.58656344,0.00022501,2]
[311000299,1704848651222,279.18,0.00021863,2]
[311000300,1704848651559,165.23,0.00022082,2]
[311000301,1704848651591,244.48704374,0.00022501,2]
[311000302,1704848651921,580.79318959,0.00022501,2]
[311000303,1704848702856,285.36,0.00021865,2]
[311000304,1704848707660,190.81792086,0.00022402,2]
[311000305,1704848712399,383.92959954,0.00022501,2]
[311000306,1704848728605,11660.17096598,0.00022501,2]
[311000307,1704848786205,180.34,0.00021811,2]
[311000308,1704848786666,155.27,0.00021974,2]
[311000309,1704848786790,155.27,0.00022203,2]
[311000310,1704848787018,155.27,0.00022432,2]
[311000311,1704848826532,168.95,0.00021812,2]
[311000312,1704848827078,-1077.86501288,0.00022502,2]
[311000313,1704848837632,301.72396012,0.00022501,2]
[311000314,1704848839155,196.57489129,0.00022501,2]
[311000315,1704848846157,-1581.87499974,0.00022502,2]
[311000316,1704848936140,8414.02,0.00021807,2]
[311000319,1704848958221,301.72396012,0.00022501,2]
[311000320,1704848974116,-196.57489129,0.00022502,2]
[311000321,1704848974136,-2942.1655205,0.00022503,2]
[311000322,1704848974157,-499.99,0.00022542,2]
[311000323,1704848974179,-150.0,0.00022581,2]
[311000324,1704848974200,-1842.05899438,0.00022582,2]
[311000325,1704848974219,-6482.86,0.00022582,2]
[311000326,1704848974252,-152.32,0.00022582,2]
[311000327,1704848974273,-3294.3697706,0.000226,2]
[311000328,1704848974292,-169.7253,0.00022624,2]
[311000329,1704848974315,-155.27,0.00022661,2]
[311000330,1704848974334,-2799.5229,0.00022687,2]
[311000331,1704848974355,-2500.0,0.00022687,2]
[311000332,1704848974378,-152.32,0.00022697,2]
[311000333,1704848974399,-1069.26,0.00022736,2]
[311000334,1704848974420,-3043.23,0.00022736,2]
[311000335,1704848974440,-2187.5742629,0.00022736,2]
[311000338,1704848976766,247.71,0.00021813,2]
[311000340,1704849021630,250.0,0.00021907,2]
[311000351,1704849031638,-499.99,0.00022687,2]
[311000352,1704849031647,-2181.7408146,0.00022736,2]
[311000353,1704849031659,-689.30241408,0.00022736,2]
[311000354,1704849031671,-4459.07250842,0.00022736,2]
[311000355,1704849031682,-166.84,0.0002274,2]
[311000356,1704849031692,-280.73104018,0.00022774,2]
[311000357,1704849031701,-295.76693216,0.00022782,2]
[311000358,1704849031711,-1370.03339648,0.00022782,2]
[311000359,1704849031720,-1558.89779921,0.00022782,2]
[311000360,1704849031729,-202.89164758,0.00022782,2]
[311000361,1704849031739,-196.57489129,0.00022782,2]
[311000362,1704849031749,-303.15269539,0.00022783,2]
[311000363,1704849031758,-1000.0,0.00022783,2]
[311000364,1704849031768,-349.74947919,0.00022783,2]
[311000365,1704849031778,-18133.95588764,0.00022784,2]
[311000366,1704849031787,-244.32909054,0.00022784,2]
[311000367,1704849031796,-269.41774634,0.00022785,2]
[311000368,1704849031805,-287.70075654,0.00022785,2]
[311000369,1704849031815,-2127.01856126,0.00022785,2]
[311000370,1704849031840,-138.82495121,0.00022785,2]
[311000371,1704849031850,-250.14146023,0.00022785,2]
[311000372,1704849031860,-559.75881912,0.00022785,2]
[311000373,1704849031870,-522.87447236,0.00022785,2]
[311000374,1704849031880,-259.28183648,0.00022785,2]
[311000375,1704849031889,-791.58524918,0.00022785,2]
[311000376,1704849031898,-184.62478369,0.00022785,2]
[311000377,1704849031910,-287.34883338,0.00022785,2]
[311000378,1704849031919,-261.59733082,0.00022785,2]
[311000379,1704849031929,-1073.66843423,0.00022785,2]
[311000381,1704849031942,-308.4540532,0.00022785,2]
[311000383,1704849031951,-213.23222394,0.00022785,2]
[311000385,1704849031961,-358.42052892,0.00022785,2]
[311000387,1704849031970,-641.62118611,0.00022785,2]
[311000389,1704849031979,-291.66404832,0.00022786,2]
[311000391,1704849031989,-2057.76092391,0.00022786,2]
[311000393,1704849031998,-2264.1935028,0.00022787,2]
[311000394,1704849032010,-1119.07440618,0.00022787,2]
[311000395,1704849032021,-1992.94131316,0.00022787,2]
[311000397,1704849032033,-744.64168612,0.00022787,2]
[311000400,1704849032053,-943.591263,0.00022787,2]
[311000401,1704849032064,-3937.39106229,0.00022787,2]
[311000402,1704849032076,-562.43544538,0.00022787,2]
[311000403,1704849032087,-1101.33165979,0.00022787,2]
[311000404,1704849032099,-298.69050621,0.00022787,2]
[311000405,1704849032114,-915.5146,0.00022787,2]
[311000406,1704849032125,-1232.77934096,0.00022787,2]
[311000407,1704849032137,-525.01690073,0.00022787,2]
[311000408,1704849032153,-434.95,0.00022787,2]
[311000409,1704849032177,-364.28381902,0.00022787,2]
[311000410,1704849032255,-95086.99853598,0.00022787,2]
[311000411,1704849032265,-247.71,0.00022791,2]
[311000412,1704849032274,-152.32,0.00022812,2]
[311000413,1704849032283,-23171.60000373,0.00022889,2]
[311000414,1704849032293,-1638.92345121,0.0002289,2]
[311000415,1704849032303,-2759.72850378,0.0002289,2]
[311000416,1704849032312,-155.27,0.0002289,2]
[311000417,1704849032321,-366.70823702,0.00022892,2]
[311000418,1704849032331,-724.07,0.00022896,2]
[311000419,1704849032341,-737.19,0.00022898,2]
[311000420,1704849032350,-198.96491722,0.00022898,2]
[311000421,1704849032359,-219.2332872,0.00022898,2]
[311000422,1704849032368,-872.0823,0.000229,2]
[311000423,1704849032379,-5240.475,0.000229,2]
[311000424,1704849032389,-1131.5449,0.000229,2]
[311000425,1704849032398,-789.8151,0.000229,2]
[311000426,1704849032408,-100000.0,0.000229,2]
[311000427,1704849032417,-1038.9169,0.000229,2]
[311000428,1704849032426,-3072.54415189,0.000229,2]
[311000429,1704849032437,-190.81792076,0.00022902,2]
[311000430,1704849032447,-152.32,0.00022927,2]
[311000431,1704849032456,-800.0,0.00022959,2]
[311000432,1704849032466,-800.0,0.00022959,2]
[311000433,1704849032476,-418.68518496,0.00022987,2]
[311000434,1704849032485,-285.99140142,0.00022988,2]
[311000435,1704849032494,-710.4,0.00022992,2]
[311000436,1704849032504,-2097.2824112,0.00022992,2]
[311000437,1704849032513,-709.82,0.00022992,2]
[311000438,1704849032523,-722.25,0.00022995,2]
[311000439,1704849032534,-736.34,0.00022996,2]
[311000440,1704849032543,-405.37130388,0.00022996,2]
[311000441,1704849032553,-31294.56773806,0.00022997,2]
[311000442,1704849032563,-1154.8357155,0.00022998,2]
[311000443,1704849032572,-1057.98752379,0.00022998,2]
[311000444,1704849032581,-155.0,0.00022998,2]
[311000445,1704849032590,-476.91385279,0.00022998,2]
[311000446,1704849032599,-3846.00581784,0.00022998,2]
[311000447,1704849032609,-278.31410173,0.00022998,2]
[311000448,1704849032618,-1847.42621652,0.00022998,2]
[311000449,1704849032628,-155.0,0.00022998,2]
[311000450,1704849032638,-155.000001,0.00022998,2]
[311000451,1704849032647,-196.03271932,0.00022998,2]
[311000452,1704849032656,-166.70879114,0.00022998,2]
[311000453,1704849032665,-5264.33667276,0.00022998,2]
[311000454,1704849032675,-2078.73502257,0.00022998,2]
[311000455,1704849032685,-266.984732,0.00022998,2]
[311000456,1704849032695,-13855.76746012,0.00022998,2]
[311000457,1704849032704,-318.10964854,0.00022998,2]
[311000458,1704849032712,-161.21857687,0.00022998,2]
[311000459,1704849032721,-220.52015853,0.00022998,2]
[311000460,1704849032731,-155.0,0.00022998,2]
[311000461,1704849032740,-180.1765583,0.00022998,2]
[311000462,1704849032749,-156.8552177,0.00022998,2]
[311000463,1704849032758,-4589.96542167,0.00022998,2]
[311000464,1704849032767,-3679.60479324,0.00022998,2]
[311000465,1704849032776,-190.74513272,0.00022998,2]
[311000466,1704849032785,-155.0,0.00022998,2]
[311000467,1704849032794,-2259.14305033,0.00022998,2]
[311000468,1704849032803,-155.35152198,0.00022998,2]
[311000469,1704849032812,-155.0,0.00022998,2]
[311000470,1704849032821,-327.81139673,0.00022998,2]
[311000471,1704849032831,-155.0,0.00022998,2]
[311000472,1704849032842,-540.53733364,0.00022998,2]
[311000473,1704849032851,-537.06141587,0.00022998,2]
[311000474,1704849032860,-229.72981498,0.00022998,2]
[311000475,1704849032870,-424.12942671,0.00022998,2]
[311000476,1704849032879,-427.65103486,0.00022998,2]
[311000477,1704849032888,-292.42178579,0.00022998,2]
[311000478,1704849032898,-155.0,0.00022998,2]
[311000479,1704849032908,-220.60657791,0.00022998,2]
[311000480,1704849032918,-1764.59474886,0.00022998,2]
[311000481,1704849032928,-3926.28285426,0.00022998,2]
[311000482,1704849032938,-155.0,0.00022998,2]
[311000483,1704849032947,-486.74627673,0.00022998,2]
[311000484,1704849032957,-214.72509252,0.00022998,2]
[311000485,1704849032967,-335.86316863,0.00022998,2]
[311000486,1704849032978,-241.83977118,0.00022998,2]
[311000487,1704849032988,-528.20860531,0.00022998,2]
[311000488,1704849032998,-1705.71895053,0.00022998,2]
[311000489,1704849033007,-3026.94321362,0.00022998,2]
[311000490,1704849033017,-158.34084436,0.00022998,2]
[311000491,1704849033026,-696.35357549,0.00022998,2]
[311000492,1704849033036,-155.0,0.00022998,2]
[311000493,1704849033044,-433.38738257,0.00022998,2]
[311000494,1704849033054,-12846.58137602,0.00022998,2]
[311000495,1704849033063,-148219.58451327,0.00022998,2]
[311000496,1704849037865,-1827.85,0.00022998,2]
[311000497,1704849037927,-860.10308339,0.00022998,2]
[311000498,1704849037940,-340.6424775,0.00022998,2]
[311000499,1704849037984,-2150.16565339,0.00022998,2]
[311000500,1704849038042,-173353.33628221,0.00022998,2]
[311000501,1704849038051,-711.55,0.00022998,2]
[311000502,1704849038060,-734.24,0.00022998,2]
[311000503,1704849038069,-732.75,0.00022999,2]
[311000504,1704849038078,-150.0,0.00022999,2]
[311000505,1704849038087,-150.0,0.00022999,2]
[311000506,1704849038098,-175840.97220946,0.00023,2]
[311000507,1704849038107,-52848.04026997,0.00023,2]
[311000508,1704849038119,-161186.98441109,0.00023,2]
[311000509,1704849038128,-152.32,0.00023043,2]
[311000510,1704849038137,-20234.52496754,0.000231,2]
[311000511,1704849038147,-155.27,0.00023119,2]
[311000512,1704849038157,-1991.6956,0.0002313,2]
[311000513,1704849038166,-152.32,0.00023158,2]
[311000514,1704849038175,-150.0,0.000232,2]
[311000515,1704849038186,-152.32,0.00023273,2]
[311000516,1704849038195,-152.32,0.00023388,2]
[311000517,1704849038204,-190.81792076,0.00023402,2]
[311000518,1704849038214,-152.32,0.00023503,2]
[311000519,1704849038223,-152.32,0.00023619,2]
[311000520,1704849038232,-152.32,0.00023734,2]
[311000521,1704849038241,-247.71,0.0002377,2]
[311000522,1704849038250,-152.32,0.00023849,2]
[311000523,1704849038260,-190.81792076,0.00023902,2]
[311000524,1704849038269,-152.32,0.00023964,2]
[311000525,1704849038278,-246.04492087,0.00024,2]
[311000526,1704849038287,-188.26,0.00024025,2]
[311000527,1704849038297,-152.32,0.00024079,2]
[311000528,1704849038306,-219.2332872,0.00024265,2]
[311000529,1704849038318,-3072.5441518,0.00024296,2]
[311000530,1704849038327,-378.9,0.00024365,2]
[311000531,1704849038336,-190.81792076,0.00024402,2]
[311000533,1704849038345,-150.0,0.0002457,2]
[311000535,1704849038355,-279.18,0.00024596,2]
[311000536,1704849038365,-250.0,0.00024658,2]
[311000537,1704849038374,-611.72,0.00024704,2]
[311000538,1704849038384,-247.71,0.00024748,2]
[311000539,1704849038393,-190.81792076,0.00024901,2]
[311000540,1704849038403,-167.05182833,0.00025,2]
[311000541,1704849038414,-1246.32796092,0.00025,2]
[311000542,1704849038424,-338.41530246,0.00025,2]
[311000543,1704849038434,-1581.25327792,0.00025,2]
[311000544,1704849038443,-906.87769315,0.00025,2]
[311000546,1704849038453,-350.0,0.00025,3]
[311000548,1704849038462,-190.81792076,0.00025401,2]
[311000550,1704849038471,-3072.5441518,0.00025692,2]
[311000552,1704849038480,-247.71,0.00025727,2]
[311000554,1704849038490,-190.81792076,0.00025901,2]
[311000556,1704849038498,-150.0,0.00026079,2]
[311000558,1704849038507,-188.26,0.00026209,2]
[311000560,1704849038516,-190.81792076,0.00026401,2]
[311000562,1704849038525,-6333.47,0.00026575,2]
[311000564,1704849038534,-7583.15,0.00026575,2]
[311000566,1704849038544,-378.9,0.00026628,2]
[311000568,1704849038552,-247.71,0.00026705,2]
[311000570,1704849038561,-190.81792076,0.00026901,2]
[311000571,1704849038571,-415.28287291,0.00027,2]
[311000572,1704849038580,-400.0,0.00027,3]
[311000573,1704849038589,-166.84,0.00027018,2]
[311000574,1704849038597,-3072.5441518,0.00027088,2]
[311000575,1704849038606,-279.18,0.00027329,2]
[311000576,1704849038616,-715.54,0.00027394,2]
[311000577,1704849038625,-737.32,0.00027394,2]
[311000578,1704849038634,-7765.59937287,0.00027395,2]
[311000579,1704849038643,-250.0,0.00027397,2]
[311000580,1704849038651,-196.79,0.00027397,2]
[311000581,1704849038660,-500.0,0.00027397,2]
[311000582,1704849038669,-250.0,0.000274,2]
[311000583,1704849038678,-190.81792076,0.00027401,2]
[311000584,1704849038687,-611.72,0.00027448,2]
[311000586,1704849038696,-247.71,0.00027683,2]
[311000588,1704849038706,-190.81792076,0.00027901,2]
[311000590,1704849038715,-202.635464,0.00028,2]
[311000592,1704849038724,-164.95796857,0.00028,2]
[311000594,1704849038733,-1428.0,0.00028203,2]
[311000596,1704849038742,-190.81792076,0.00028401,2]
[311000598,1704849038751,-3072.5441518,0.00028484,2]
[311000600,1704849038760,-247.71,0.00028662,2]
[311000602,1704849038768,-482.91052247,0.00028767,2]
[311000604,1704849038777,-196.79,0.00028822,2]
[311000606,1704849038786,-378.9,0.00028892,2]
[311000608,1704849038796,-190.81792076,0.00028901,2]
[311000610,1704849038805,-450.0,0.00029,3]
[311000612,1704849038814,-190.81792076,0.00029401,2]
[311000614,1704849038823,-2889.48704051,0.000295,2]
[311000616,1704849038832,-247.71,0.0002964,2]
[311000618,1704849038841,-20431.84212325,0.000298,2]
[311000620,1704849038850,-3072.5441518,0.0002988,2]
[311000622,1704849038859,-190.81792076,0.000299,2]
[311000624,1704849038868,-155.0,0.0003,2]
[311000626,1704849038877,-700.0,0.0003,14]
[311000628,1704849038886,-154.0,0.0003,2]
[311000630,1704849038895,-279.18,0.00030062,2]
[311000632,1704849038904,-1952.07592715,0.000301,2]
[311000634,1704849038913,-153.84,0.00030137,2]
[311000636,1704849038922,-611.72,0.00030193,2]
[311000638,1704849038931,-190.81792076,0.000304,2]
[311000640,1704849038941,-198.96491721,0.00030475,2]
[311000642,1704849038950,-247.71,0.00030619,2]
[311000644,1704849038959,-190.81792076,0.000309,2]
[311000646,1704849038968,-500.0,0.00031,3]
[311000648,1704849038978,-378.9,0.00031156,2]
[311000650,1704849038986,-216.52,0.000312,2]
[311000652,1704849038995,-203.0,0.00031255,2]
[311000654,1704849039004,-3072.5441518,0.00031276,2]